fUST/lending_fUST_20250921
["ID","MTS","AMOUNT","RATE_DAILY","PERIOD"]
[386709222,1758465050840,-758.87,0.00020547,2]
[386709224,1758465050849,-480.0,0.00020547,2]
[386709226,1758465050859,-480.0,0.00020547,2]
[386709228,1758465050868,-480.0,0.00020547,2]
[386709230,1758465050878,-480.0,0.00020547,2]
[386709232,1758465050888,-480.0,0.00020547,2]
[386709234,1758465050898,-448.59723218,0.00020547,2]
[386709236,1758465050907,-1189.96,0.00020547,2]
[386709238,1758465050916,-480.0,0.00020547,2]
[386709240,1758465050926,-480.0,0.00020547,2]
[386709242,1758465050936,-480.0,0.00020547,2]
[386709244,1758465050945,-480.0,0.00020547,2]
[386709245,1758465050956,-480.0,0.00020547,2]
[386709246,1758465050966,-503.86674685,0.00020547,2]
[386709247,1758465050975,-480.0,0.00020547,2]
[386709248,1758465050984,-784.33,0.00020547,2]
[386709249,1758465050994,-480.0,0.00020547,2]
[386709250,1758465051004,-480.0,0.00020547,2]
[386709251,1758465051013,-540.31,0.00020547,2]
[386709252,1758465051022,-974.0,0.00020547,2]
[386709253,1758465051032,-798.69,0.00020547,2]
[386709254,1758465051042,-222.53119266,0.00020547,2]
[386709255,1758465051052,-1879.92,0.00020547,2]
[386709256,1758465051062,-480.0,0.00020547,2]
[386709257,1758465051071,-480.0,0.00020547,2]
[386709258,1758465051080,-480.0,0.00020547,2]
[386709259,1758465051090,-480.0,0.00020547,2]
[386709260,1758465051099,-480.0,0.00020547,2]
[386709261,1758465051108,-480.0,0.00020547,2]
[386709262,1758465051117,-480.0,0.00020547,2]
[386709263,1758465051126,-544.76,0.00020547,2]
[386709264,1758465051136,-480.0,0.00020547,2]
[386709265,1758465051146,-480.0,0.00020547,2]
[386709267,1758465051155,-480.0,0.00020547,2]
[386709269,1758465051165,-480.0,0.00020547,2]
[386709271,1758465051175,-480.0,0.00020547,2]
[386709274,1758465051185,-480.0,0.00020547,2]
[386709275,1758465051193,-5554.99,0.00020547,2]
[386709277,1758465051202,-480.0,0.00020547,2]
[386709279,1758465051212,-480.0,0.00020547,2]
[386709281,1758465051222,-3076.35,0.00020547,2]
[386709283,1758465051231,-1341.09,0.00020547,2]
[386709286,1758465051241,-480.0,0.00020547,2]
[386709287,1758465051250,-882.74,0.00020547,2]
[386709290,1758465051260,-480.0,0.00020547,2]
[386709291,1758465051269,-1338.37,0.00020547,2]
[386709294,1758465051279,-480.0,0.00020547,2]
[386709295,1758465051288,-570.77,0.00020547,2]
[386709297,1758465051298,-1505.21,0.00020547,2]
[386709299,1758465051307,-1515.49,0.00020547,2]
[386709302,1758465051317,-480.0,0.00020547,2]
[386709304,1758465051328,-694.13,0.00020547,2]
[386709306,1758465051338,-480.0,0.00020547,2]
[386709308,1758465051348,-490.69,0.00020547,2]
[386709310,1758465051362,-480.0,0.00020547,2]
[386709312,1758465051372,-480.0,0.00020547,2]
[386709314,1758465051382,-987.7,0.00020547,2]
[386709316,1758465051391,-1336.02,0.00020547,2]
[386709318,1758465051402,-480.0,0.00020547,2]
[386709320,1758465051411,-968.07,0.00020547,2]
[386709322,1758465051421,-480.0,0.00020547,2]
[386709324,1758465051430,-480.0,0.00020547,2]
[386709326,1758465051439,-480.0,0.00020547,2]
[386709328,1758465051448,-546.47,0.00020547,2]
[386709330,1758465051458,-480.0,0.00020547,2]
[386709332,1758465051467,-480.0,0.00020547,2]
[386709334,1758465051476,-480.0,0.00020547,2]
[386709336,1758465051485,-480.0,0.00020547,2]
[386709338,1758465051494,-480.0,0.00020547,2]
[386709340,1758465051503,-480.0,0.00020547,2]
[386709342,1758465051513,-12922.81,0.00020547,2]
[386709344,1758465051522,-480.0,0.00020547,2]
[386709358,1758465051628,-480.0,0.00020547,2]
[386709360,1758465051650,-698.8,0.00020547,2]
[386709362,1758465051659,-480.0,0.00020547,2]
[386709364,1758465051669,-506.1,0.00020547,2]
[386709366,1758465051679,-339.93500163,0.00020547,2]
[386709368,1758465051689,-480.0,0.00020547,2]
[386709370,1758465051698,-480.0,0.00020547,2]
[386709373,1758465051708,-550.18,0.00020547,2]
[386709374,1758465051717,-480.0,0.00020547,2]
[386709376,1758465051726,-3297.46,0.00020547,2]
[386709378,1758465051735,-480.0,0.00020547,2]
[386709380,1758465051744,-1487.97,0.00020547,2]
[386709382,1758465051753,-480.0,0.00020547,2]
[386709384,1758465051763,-525.75,0.00020547,2]
[386709386,1758465051772,-513.26,0.00020547,2]
[386709388,1758465051781,-554.02,0.00020547,2]
[386709390,1758465051790,-3338.95,0.00020547,2]
[386709392,1758465051800,-624.16,0.00020547,2]
[386709394,1758465051809,-480.0,0.00020547,2]
[386709396,1758465051818,-1847.9,0.00020547,2]
[386709398,1758465051827,-480.0,0.00020547,2]
[386709400,1758465051836,-480.0,0.00020547,2]
[386709402,1758465051846,-480.0,0.00020547,2]
[386709404,1758465051855,-480.0,0.00020547,2]
[386709406,1758465051865,-480.0,0.00020547,2]
[386709408,1758465051874,-1314.78,0.00020547,2]
[386709410,1758465051883,-480.0,0.00020547,2]
[386709412,1758465051893,-1042.87,0.00020547,2]
[386709414,1758465051902,-480.0,0.00020547,2]
[386709416,1758465051911,-490.25080128,0.00020547,2]
[386709418,1758465051921,-480.33,0.00020547,2]
[386709420,1758465051930,-480.0,0.00020547,2]
[386709422,1758465051940,-480.0,0.00020547,2]
[386709424,1758465051949,-574.88,0.00020547,2]
[386709426,1758465051958,-480.0,0.00020547,2]
[386709428,1758465051968,-480.0,0.00020547,2]
[386709430,1758465051977,-480.0,0.00020547,2]
[386709432,1758465051987,-480.0,0.00020547,2]
[386709434,1758465051996,-480.0,0.00020547,2]
[386709436,1758465052006,-480.0,0.00020547,2]
[386709437,1758465052015,-480.0,0.00020547,2]
[386709438,1758465052025,-166.66666666,0.00020548,2]
[386709439,1758465052034,-1500.0,0.00020568,2]
[386709440,1758465052045,-1059.43010772,0.00020579,2]
[386709441,1758465052054,-1829.94938462,0.000206,2]
[386709442,1758465052063,-151.0,0.00020693,2]
[386709443,1758465052072,-151.0,0.00020693,2]
[386709444,1758465052082,-151.0,0.00020693,2]
[386709445,1758465052091,-356.0,0.00020693,2]
[386709446,1758465052100,-1500.0,0.00020712,2]
[386709447,1758465052110,-272.5966062,0.00020738,2]
[386709448,1758465052119,-1221.6932303,0.00020738,2]
[386709449,1758465052128,-168.0,0.00020767,2]
[386709450,1758465052138,-221.18217356,0.00020786,2]
[386709451,1758465052147,-160.0,0.00020796,3]
[386709452,1758465052158,-1829.94938462,0.000208,2]
[386709453,1758465052166,-328.0,0.00020807,2]
[386709454,1758465052176,-328.0,0.00020807,2]
[386709455,1758465052185,-328.0,0.00020807,2]
[386709456,1758465052194,-2000.0,0.00020816,2]
[386709457,1758465052203,-480.0,0.00020821,2]
[386709458,1758465052213,-440.55967943,0.00020821,2]
[386709460,1758465052223,-480.0,0.00020821,2]
[386709462,1758465052231,-480.0,0.00020821,2]
[386709464,1758465052240,-480.0,0.00020821,2]
[386709465,1758465052250,-480.0,0.00020821,2]
[386709467,1758465052260,-480.0,0.00020821,2]
[386709469,1758465052269,-480.0,0.00020821,2]
[386709471,1758465052279,-480.0,0.00020821,2]
[386709473,1758465052288,-480.0,0.00020821,2]
[386709475,1758465052298,-480.0,0.00020821,2]
[386709477,1758465052307,-480.0,0.00020821,2]
[386709479,1758465052317,-480.0,0.00020821,2]
[386709481,1758465052328,-192.82163182,0.00020821,2]
[386709483,1758465052338,-480.0,0.00020821,2]
[386709485,1758465052348,-480.0,0.00020821,2]
[386709487,1758465052361,-579.6436864,0.00020821,2]
[386709489,1758465052371,-480.0,0.00020821,2]
[386709492,1758465052380,-480.0,0.00020821,2]
[386709493,1758465052390,-480.0,0.00020821,2]
[386709495,1758465052399,-480.0,0.00020821,2]
[386709497,1758465052409,-480.0,0.00020821,2]
[386709499,1758465052419,-480.0,0.00020821,2]
[386709502,1758465052428,-480.0,0.00020821,2]
[386709504,1758465052438,-480.0,0.00020821,2]
[386709506,1758465052447,-480.92,0.00020821,2]
[386709508,1758465052457,-480.0,0.00020821,2]
[386709510,1758465052466,-480.0,0.00020821,2]
[386709512,1758465052476,-480.0,0.00020821,2]
[386709514,1758465052486,-758.87,0.00020821,2]
[386709516,1758465052496,-480.0,0.00020821,2]
[386709518,1758465052505,-480.0,0.00020821,2]
[386709520,1758465052515,-427.76546388,0.00020821,2]
[386709522,1758465052524,-480.0,0.00020821,2]
[386709524,1758465052534,-480.0,0.00020821,2]
[386709526,1758465052543,-480.0,0.00020821,2]
[386709528,1758465052552,-1189.96,0.00020821,2]
[386709530,1758465052562,-480.0,0.00020821,2]
[386709532,1758465052572,-480.0,0.00020821,2]
[386709534,1758465052581,-526.19,0.00020821,2]
[386709536,1758465052590,-480.0,0.00020821,2]
[386709538,1758465052599,-480.0,0.00020821,2]
[386709540,1758465052608,-784.33,0.00020821,2]
[386709542,1758465052618,-480.0,0.00020821,2]
[386709544,1758465052627,-480.0,0.00020821,2]
[386709546,1758465052636,-540.31,0.00020821,2]
[386709548,1758465052646,-974.0,0.00020821,2]
[386709550,1758465052655,-798.69,0.00020821,2]
[386709552,1758465052663,-1879.92,0.00020821,2]
[386709554,1758465052673,-480.0,0.00020821,2]
[386709556,1758465052682,-480.0,0.00020821,2]
[386709557,1758465052691,-480.0,0.00020821,2]
[386709559,1758465052700,-480.0,0.00020821,2]
[386709561,1758465052711,-480.0,0.00020821,2]
[386709564,1758465052720,-480.0,0.00020821,2]
[386709566,1758465052729,-480.0,0.00020821,2]
[386709568,1758465052739,-544.76,0.00020821,2]
[386709570,1758465052748,-480.0,0.00020821,2]
[386709572,1758465052758,-480.0,0.00020821,2]
[386709573,1758465052767,-603.94961081,0.00020821,2]
[386709575,1758465052776,-480.0,0.00020821,2]
[386709578,1758465052786,-480.0,0.00020821,2]
[386709580,1758465052796,-480.0,0.00020821,2]
[386709582,1758465052806,-5554.99,0.00020821,2]
[386709584,1758465052815,-480.0,0.00020821,2]
[386709585,1758465052824,-480.0,0.00020821,2]
[386709588,1758465052833,-3076.35,0.00020821,2]
[386709590,1758465052843,-1341.09,0.00020821,2]
[386709592,1758465052852,-480.0,0.00020821,2]
[386709594,1758465052861,-882.74,0.00020821,2]
[386709595,1758465052871,-480.0,0.00020821,2]
[386709598,1758465052880,-1338.37,0.00020821,2]
[386709600,1758465052890,-480.0,0.00020821,2]
[386709601,1758465052899,-570.77,0.00020821,2]
[386709604,1758465052909,-1505.21,0.00020821,2]
[386709606,1758465052918,-1515.49,0.00020821,2]
[386709608,1758465052928,-480.0,0.00020821,2]
[386709610,1758465052938,-694.13,0.00020821,2]
[386709612,1758465052947,-480.0,0.00020821,2]
[386709614,1758465052956,-490.69,0.00020821,2]
[386709616,1758465052966,-480.0,0.00020821,2]
[386709618,1758465052975,-480.0,0.00020821,2]
[386709620,1758465052984,-987.7,0.00020821,2]
[386709622,1758465052994,-1336.02,0.00020821,2]
[386709624,1758465053003,-480.0,0.00020821,2]
[386709626,1758465053012,-968.07,0.00020821,2]
[386709628,1758465053021,-480.0,0.00020821,2]
[386709630,1758465053031,-480.0,0.00020821,2]
[386709632,1758465053040,-480.0,0.00020821,2]
[386709634,1758465053049,-546.47,0.00020821,2]
[386709636,1758465053059,-480.0,0.00020821,2]
[386709638,1758465053069,-480.0,0.00020821,2]
[386709640,1758465053078,-480.0,0.00020821,2]
[386709642,1758465053088,-480.0,0.00020821,2]
[386709644,1758465053097,-480.0,0.00020821,2]
[386709646,1758465053106,-480.0,0.00020821,2]
[386709648,1758465053116,-480.0,0.00020821,2]
[386709650,1758465053125,-12922.81,0.00020821,2]
[386709652,1758465053135,-480.0,0.00020821,2]
[386709654,1758465053146,-698.8,0.00020821,2]
[386709656,1758465053156,-480.0,0.00020821,2]
[386709658,1758465053165,-506.1,0.00020821,2]
[386709660,1758465053175,-480.0,0.00020821,2]
[386709662,1758465053184,-480.0,0.00020821,2]
[386709664,1758465053194,-550.18,0.00020821,2]
[386709666,1758465053203,-480.0,0.00020821,2]
[386709668,1758465053212,-3297.46,0.00020821,2]
[386709670,1758465053223,-480.0,0.00020821,2]
[386709672,1758465053232,-1487.97,0.00020821,2]
[386709674,1758465053242,-480.0,0.00020821,2]
[386709676,1758465053251,-525.75,0.00020821,2]
[386709678,1758465053260,-513.26,0.00020821,2]
[386709680,1758465053269,-554.02,0.00020821,2]
[386709682,1758465053279,-3338.95,0.00020821,2]
[386709684,1758465053287,-624.16,0.00020821,2]
[386709686,1758465053297,-480.0,0.00020821,2]
[386709688,1758465053306,-1847.9,0.00020821,2]
[386709689,1758465053316,-480.0,0.00020821,2]
[386709692,1758465053326,-480.0,0.00020821,2]
[386709693,1758465053336,-480.0,0.00020821,2]
[386709696,1758465053345,-480.0,0.00020821,2]
[386709697,1758465053359,-480.0,0.00020821,2]
[386709700,1758465053369,-1314.78,0.00020821,2]
[386709702,1758465053378,-409.74082706,0.00020821,2]
[386709704,1758465053389,-1042.87,0.00020821,2]
[386709706,1758465053399,-480.0,0.00020821,2]
[386709708,1758465053409,-480.33,0.00020821,2]
[386709710,1758465053419,-480.0,0.00020821,2]
[386709712,1758465053432,-480.0,0.00020821,2]
[386709714,1758465053442,-574.88,0.00020821,2]
[386709716,1758465053451,-480.0,0.00020821,2]
[386709718,1758465053461,-480.0,0.00020821,2]
[386709720,1758465053471,-480.0,0.00020821,2]
[386709722,1758465053481,-480.0,0.00020821,2]
[386709724,1758465053490,-480.0,0.00020821,2]
[386709726,1758465053500,-480.0,0.00020821,2]
[386709728,1758465053510,-480.0,0.00020821,2]
[386709729,1758465053520,-1681.40328752,0.00020821,2]
[386709730,1758465053530,-203.890194,0.00020822,2]
[386709731,1758465053539,-203.890194,0.00020822,2]
[386709732,1758465053548,-203.890194,0.00020822,2]
[386709733,1758465053559,-203.890194,0.00020822,2]
[386709734,1758465053568,-203.890194,0.00020822,2]
[386709735,1758465053578,-203.890194,0.00020822,2]
[386709736,1758465053587,-203.890194,0.00020822,2]
[386709737,1758465053597,-203.890194,0.00020822,2]
[386709738,1758465053607,-203.890194,0.00020822,2]
[386709739,1758465053616,-203.890194,0.00020822,2]
[386709740,1758465053625,-203.890194,0.00020822,2]
[386709741,1758465053635,-203.890194,0.00020822,2]
[386709742,1758465053645,-203.890194,0.00020822,2]
[386709743,1758465053655,-203.890194,0.00020822,2]
[386709744,1758465053664,-203.890194,0.00020822,2]
[386709745,1758465053673,-203.890194,0.00020822,2]
[386709746,1758465053683,-800.0,0.00020827,2]
[386709747,1758465053693,-1000.01482618,0.00020827,2]
[386709748,1758465053703,-800.0,0.00020839,2]
[386709749,1758465053712,-578.81782644,0.00020881,2]
[386709750,1758465053721,-420.0,0.00020884,2]
[386709751,1758465053731,-1494.0,0.00020885,2]
[386709752,1758465053740,-800.0,0.00020886,2]
[386709753,1758465053751,-151.0,0.000209,3]
[386709754,1758465053761,-252.41532655,0.000209,2]
[386709755,1758465053770,-3874.5319705,0.000209,2]
[386709756,1758465053779,-356.0,0.00020925,2]
[386709757,1758465053789,-7225.19,0.0002095,2]
[386709758,1758465053798,-800.0,0.00020961,2]
[386709759,1758465053807,-12136.51323494,0.00020972,2]
[386709760,1758465053817,-1680.0,0.00020984,2]
[386709761,1758465053826,-1829.94938462,0.00021,2]
[386709762,1758465053835,-1000.0,0.00021,2]
[386709763,1758465053846,-150.192228,0.00021,2]
[386709764,1758465053855,-250.15762685,0.00021,2]
[386709765,1758465053865,-272.83038381,0.00021,2]
[386709766,1758465053874,-19921.62877244,0.00021,3]
[386709767,1758465053884,-160.0,0.00021,3]
[386709768,1758465053893,-417.15472785,0.00021,3]
[386709769,1758465053902,-800.0,0.00021051,2]
[386709770,1758465053911,-1500.0,0.00021068,2]
[386709771,1758465053921,-1500.0,0.00021068,2]
[386709772,1758465053931,-1500.0,0.00021068,2]
[386709773,1758465053940,-1500.0,0.00021068,2]
[386709774,1758465053950,-1500.0,0.00021068,2]
[386709775,1758465054057,-1500.0,0.00021068,2]
[386709776,1758465054067,-180.06091837,0.00021073,2]
[386709777,1758465054077,-800.0,0.00021077,2]
[386709778,1758465054086,-500.0,0.00021091,2]
[386709779,1758465054098,-151.44138395,0.00021091,2]
[386709780,1758465054108,-158.35257327,0.00021091,2]
[386709781,1758465054117,-500.0,0.00021091,2]
[386709782,1758465054126,-500.0,0.00021091,2]
[386709783,1758465054136,-151.0,0.00021091,2]
[386709784,1758465054145,-151.0,0.00021091,2]
[386709785,1758465054155,-500.0,0.00021091,2]
[386709786,1758465054164,-838.0,0.00021091,2]
[386709787,1758465054174,-151.10286639,0.00021091,2]
[386709788,1758465054184,-151.31375165,0.00021091,2]
[386709789,1758465054193,-151.12302328,0.00021091,2]
[386709790,1758465054202,-151.0,0.00021091,2]
[386709791,1758465054211,-151.0,0.00021091,2]
[386709792,1758465054221,-243.53813109,0.00021091,2]
[386709793,1758465054230,-201.62966623,0.00021094,2]
[386709794,1758465054240,-480.0,0.00021095,2]
[386709795,1758465054251,-480.0,0.00021095,2]
[386709796,1758465054260,-540.20987202,0.00021095,2]
[386709797,1758465054269,-480.0,0.00021095,2]
[386709798,1758465054279,-480.0,0.00021095,2]
[386709799,1758465054289,-480.0,0.00021095,2]
[386709800,1758465054299,-480.0,0.00021095,2]
[386709801,1758465054309,-480.0,0.00021095,2]
[386709802,1758465054319,-480.0,0.00021095,2]
[386709803,1758465054329,-203.890194,0.00021095,2]
[386709804,1758465054338,-203.890194,0.00021095,2]
[386709805,1758465054349,-480.0,0.00021095,2]
[386709806,1758465054362,-203.890194,0.00021095,2]
[386709808,1758465054372,-203.890197,0.00021095,2]
[386709809,1758465054382,-480.0,0.00021095,2]
[386709810,1758465054392,-480.0,0.00021095,2]
[386709811,1758465054401,-480.0,0.00021095,2]
[386709812,1758465054411,-480.0,0.00021095,2]
[386709813,1758465054420,-480.0,0.00021095,2]
[386709814,1758465054430,-480.0,0.00021095,2]
[386709815,1758465054440,-480.0,0.00021095,2]
[386709817,1758465054450,-480.0,0.00021095,2]
[386709818,1758465054460,-480.0,0.00021095,2]
[386709819,1758465054470,-480.92,0.00021095,2]
[386709821,1758465054480,-480.0,0.00021095,2]
[386709822,1758465054490,-185.72970835,0.00021095,2]
[386709823,1758465054500,-480.0,0.00021095,2]
[386709824,1758465054510,-758.87,0.00021095,2]
[386709825,1758465054520,-507.41520428,0.00021095,2]
[386709826,1758465054529,-480.0,0.00021095,2]
[386709828,1758465054539,-480.0,0.00021095,2]
[386709830,1758465054549,-480.0,0.00021095,2]
[386709832,1758465054558,-480.0,0.00021095,2]
[386709833,1758465054568,-1189.96,0.00021095,2]
[386709834,1758465054577,-480.0,0.00021095,2]
[386709835,1758465054587,-480.0,0.00021095,2]
[386709836,1758465054596,-480.0,0.00021095,2]
[386709837,1758465054606,-480.0,0.00021095,2]
[386709838,1758465054616,-784.33,0.00021095,2]
[386709839,1758465054626,-480.0,0.00021095,2]
[386709840,1758465054636,-480.0,0.00021095,2]
[386709841,1758465054647,-540.31,0.00021095,2]
[386709842,1758465054657,-974.0,0.00021095,2]
[386709843,1758465054666,-798.69,0.00021095,2]
[386709844,1758465054675,-1879.92,0.00021095,2]
[386709845,1758465054686,-480.0,0.00021095,2]
[386709846,1758465054695,-480.0,0.00021095,2]
[386709847,1758465054705,-480.0,0.00021095,2]
[386709848,1758465054715,-480.0,0.00021095,2]
[386709849,1758465054725,-480.0,0.00021095,2]
[386709850,1758465054735,-480.0,0.00021095,2]
[386709851,1758465054744,-480.0,0.00021095,2]
[386709852,1758465054754,-544.76,0.00021095,2]
[386709853,1758465054763,-480.0,0.00021095,2]
[386709854,1758465054773,-480.0,0.00021095,2]
[386709855,1758465054782,-480.0,0.00021095,2]
[386709856,1758465054792,-480.0,0.00021095,2]
[386709857,1758465054802,-480.0,0.00021095,2]
[386709858,1758465054812,-5075.15565815,0.00021095,2]
[386709859,1758465054950,-479.83434185,0.00021095,2]
[386709860,1758465054959,-480.0,0.00021095,2]
[386709861,1758465054969,-480.0,0.00021095,2]
[386709862,1758465054979,-3076.35,0.00021095,2]
[386709863,1758465054989,-1341.09,0.00021095,2]
[386709864,1758465054998,-480.0,0.00021095,2]
[386709865,1758465055008,-882.74,0.00021095,2]
[386709866,1758465055018,-480.0,0.00021095,2]
[386709867,1758465055028,-1338.37,0.00021095,2]
[386709868,1758465055037,-480.0,0.00021095,2]
[386709869,1758465055047,-570.77,0.00021095,2]
[386709870,1758465055056,-1505.21,0.00021095,2]
[386709871,1758465055066,-1515.49,0.00021095,2]
[386709872,1758465055075,-480.0,0.00021095,2]
[386709873,1758465055085,-694.13,0.00021095,2]
[386709874,1758465055094,-480.0,0.00021095,2]
[386709875,1758465055103,-490.69,0.00021095,2]
[386709876,1758465055113,-480.0,0.00021095,2]
[386709877,1758465055123,-480.0,0.00021095,2]
[386709878,1758465055133,-987.7,0.00021095,2]
[386709879,1758465055143,-1336.02,0.00021095,2]
[386709880,1758465055152,-480.0,0.00021095,2]
[386709881,1758465055161,-968.07,0.00021095,2]
[386709882,1758465055171,-480.0,0.00021095,2]
[386709883,1758465055180,-480.0,0.00021095,2]
[386709884,1758465055189,-480.0,0.00021095,2]
[386709885,1758465055199,-546.47,0.00021095,2]
[386709886,1758465055208,-480.0,0.00021095,2]
[386709887,1758465055217,-480.0,0.00021095,2]
[386709888,1758465055227,-480.0,0.00021095,2]
[386709889,1758465055236,-480.0,0.00021095,2]
[386709890,1758465055245,-480.0,0.00021095,2]
[386709891,1758465055254,-480.0,0.00021095,2]
[386709892,1758465055264,-480.0,0.00021095,2]
[386709893,1758465055274,-480.0,0.00021095,2]
[386709894,1758465055283,-12922.81,0.00021095,2]
[386709895,1758465055293,-698.8,0.00021095,2]
[386709896,1758465055303,-480.0,0.00021095,2]
[386709897,1758465055312,-506.1,0.00021095,2]
[386709898,1758465055322,-480.0,0.00021095,2]
[386709899,1758465055332,-480.0,0.00021095,2]
[386709900,1758465055341,-550.18,0.00021095,2]
[386709901,1758465055355,-301.09924338,0.00021095,2]
[386709902,1758465055365,-3297.46,0.00021095,2]
[386709903,1758465055375,-480.0,0.00021095,2]
[386709904,1758465055384,-1487.97,0.00021095,2]
[386709905,1758465055395,-480.0,0.00021095,2]
[386709906,1758465055404,-525.75,0.00021095,2]
[386709907,1758465055412,-513.26,0.00021095,2]
[386709908,1758465055421,-554.02,0.00021095,2]
[386709909,1758465055432,-3338.95,0.00021095,2]
[386709910,1758465055441,-624.16,0.00021095,2]
[386709911,1758465055451,-480.0,0.00021095,2]
[386709912,1758465055461,-1847.9,0.00021095,2]
[386709913,1758465055470,-480.0,0.00021095,2]
[386709914,1758465055479,-480.0,0.00021095,2]
[386709915,1758465055489,-480.0,0.00021095,2]
[386709917,1758465055498,-267.03328453,0.00021095,2]
[386709918,1758465055507,-480.0,0.00021095,2]
[386709919,1758465055517,-1314.78,0.00021095,2]
[386709920,1758465055526,-1042.87,0.00021095,2]
[386709921,1758465055536,-480.0,0.00021095,2]
[386709922,1758465055545,-480.33,0.00021095,2]
[386709924,1758465055555,-480.0,0.00021095,2]
[386709926,1758465055564,-480.0,0.00021095,2]
[386709928,1758465055573,-574.88,0.00021095,2]
[386709930,1758465055583,-480.0,0.00021095,2]
[386709932,1758465055592,-480.0,0.00021095,2]
[386709933,1758465055602,-480.0,0.00021095,2]
[386709934,1758465055611,-480.0,0.00021095,2]
[386709935,1758465055620,-480.0,0.00021095,2]
[386709936,1758465055630,-480.0,0.00021095,2]
[386709937,1758465055640,-480.0,0.00021095,2]
[386709938,1758465055650,-3000.0,0.000211,2]
[386709939,1758465055660,-719.52342981,0.00021107,2]
[386709941,1758465055670,-3000.0,0.0002111,2]
[386709943,1758465055679,-2000.0,0.00021116,2]
[386709944,1758465055689,-3000.0,0.0002112,2]
[386709945,1758465055698,-3000.0,0.0002113,2]
[386709946,1758465055708,-5381.444843,0.0002114,2]
[386709947,1758465055718,-184.13062456,0.0002122,2]
[386709948,1758465055728,-7133.96077061,0.00021269,2]
[386709951,1758465055808,-160.0,0.00020172,2]
[386709952,1758465055818,-4455.99428696,0.00021269,2]
[386709953,1758465055843,-291.3,0.00021269,2]
[386709954,1758465056054,-480.0,0.00019178,2]
[386709955,1758465056063,-160.0,0.00020172,2]
[386709956,1758465056073,-160.0,0.00020172,2]
[386709957,1758465056082,-160.0,0.00020172,2]
[386709958,1758465056091,-160.0,0.00020172,2]
[386709959,1758465056101,-1578.18660665,0.00021269,2]
[386709960,1758465056208,-3481.0999878,0.0002127,2]
[386709961,1758465056218,-712.65700996,0.00021305,2]
[386709962,1758465056228,-2500.0,0.00021364,2]
[386709963,1758465056237,-500.0,0.00021365,2]
[386709964,1758465056248,-500.0,0.00021365,2]
[386709965,1758465056257,-500.65471073,0.00021365,2]
[386709966,1758465056267,-165.78532979,0.00021365,2]
[386709967,1758465056277,-151.0,0.00021365,2]
[386709968,1758465056286,-500.0,0.00021365,2]
[386709969,1758465056295,-838.0,0.00021365,2]
[386709970,1758465056305,-151.0,0.00021365,2]
[386709971,1758465056314,-155.87987351,0.00021365,2]
[386709972,1758465056323,-381.6,0.00021369,2]
[386709973,1758465056332,-480.0,0.00021369,2]
[386709974,1758465056341,-480.0,0.00021369,2]
[386709975,1758465056352,-480.0,0.00021369,2]